[Event "*** Titled Tuesday Blitz"]
[Site "Chess.com"]
[Date "2020.04.21"]
[Round "7"]
[White "Nathan_Filgueiras"]
[Black "AlanZhang"]
[Result "1-0"]
[WhiteElo "2315"]
[BlackElo "2160"]
[TimeControl "180+1"]
[EndTime "11:23:13 PDT"]
[Termination "Nathan_Filgueiras won on time"]

1. e4 {[%clk 0:03:00.9]} 1... e5 {[%clk 0:02:59.9]} 2. Nf3 {[%clk 0:03:00.5]}
2... Nc6 {[%clk 0:02:59.8]} 3. Bc4 {[%clk 0:03:00.5]} 3... Bc5 {[%clk
0:02:59.3]} 4. O-O {[%clk 0:02:57.5]} 4... Nf6 {[%clk 0:02:59]} 5. d3 {[%clk
0:02:57.7]} 5... d6 {[%clk 0:02:58.8]} 6. c3 {[%clk 0:02:57.4]} 6... Bb6 {[%clk
0:02:59.3]} 7. Nbd2 {[%clk 0:02:56.6]} 7... h6 {[%clk 0:02:59.1]} 8. Bb3 {[%clk
0:02:56.9]} 8... O-O {[%clk 0:02:59.5]} 9. Nc4 {[%clk 0:02:57.4]} 9... Re8
{[%clk 0:02:58.8]} 10. a4 {[%clk 0:02:57.2]} 10... Be6 {[%clk 0:02:49.8]} 11.
Re1 {[%clk 0:02:33.5]} 11... Nd7 {[%clk 0:02:10]} 12. h3 {[%clk 0:02:27.8]}
12... Nc5 {[%clk 0:02:06.2]} 13. Bc2 {[%clk 0:02:25.3]} 13... Bxc4 {[%clk
0:01:59.3]} 14. dxc4 {[%clk 0:02:25.1]} 14... a5 {[%clk 0:01:59.4]} 15. Be3
{[%clk 0:02:17.6]} 15... Nd7 {[%clk 0:01:33.7]} 16. Qd2 {[%clk 0:02:08.7]} 16...
Bxe3 {[%clk 0:01:13.7]} 17. Qxe3 {[%clk 0:02:09.6]} 17... Qf6 {[%clk 0:01:12.7]}
18. Rad1 {[%clk 0:02:07.5]} 18... Nc5 {[%clk 0:01:11.1]} 19. Ra1 {[%clk
0:01:57.5]} 19... Ne6 {[%clk 0:01:05.6]} 20. Kh2 {[%clk 0:01:46.1]} 20... Nc5
{[%clk 0:00:55.6]} 21. Red1 {[%clk 0:01:38.3]} 21... g5 {[%clk 0:00:54.8]} 22.
Ng1 {[%clk 0:01:23.3]} 22... Kg7 {[%clk 0:00:53.8]} 23. Ne2 {[%clk 0:01:22.8]}
23... h5 {[%clk 0:00:45.8]} 24. Ng3 {[%clk 0:01:21.9]} 24... Kg6 {[%clk
0:00:44.9]} 25. Rd2 {[%clk 0:01:11.3]} 25... Qf4 {[%clk 0:00:36.5]} 26. Re1
{[%clk 0:01:01.9]} 26... h4 {[%clk 0:00:15.7]} 27. Qxf4 {[%clk 0:01:01.6]} 27...
exf4 {[%clk 0:00:16.6]} 28. Nf5 {[%clk 0:00:54.5]} 28... Kf6 {[%clk 0:00:16.3]}
29. b3 {[%clk 0:00:51.8]} 29... Ne5 {[%clk 0:00:15]} 30. f3 {[%clk 0:00:49.1]}
30... Nc6 {[%clk 0:00:05.4]} 31. Nd4 {[%clk 0:00:48.1]} 31... Ne7 {[%clk
0:00:03.9]} 32. Nb5 {[%clk 0:00:45.7]} 32... Rac8 {[%clk 0:00:03]} 33. Nd4
{[%clk 0:00:40.2]} 33... Ne6 {[%clk 0:00:03.4]} 34. Rde2 {[%clk 0:00:35.1]}
34... Nxd4 {[%clk 0:00:03.2]} 35. cxd4 {[%clk 0:00:34.8]} 35... Nc6 {[%clk
0:00:04.1]} 36. Rd2 {[%clk 0:00:33.7]} 36... Nb4 {[%clk 0:00:04.3]} 37. Bb1
{[%clk 0:00:34.2]} 37... c5 {[%clk 0:00:04.4]} 38. e5+ {[%clk 0:00:25.4]} 38...
dxe5 {[%clk 0:00:04.3]} 39. dxe5+ {[%clk 0:00:25.4]} 39... Rxe5 {[%clk
0:00:05.2]} 40. Rd6+ {[%clk 0:00:24.6]} 40... Re6 {[%clk 0:00:05.8]} 41. Rexe6+
{[%clk 0:00:22.7]} 41... fxe6 {[%clk 0:00:06.7]} 42. Rd7 {[%clk 0:00:23.3]}
42... Nc6 {[%clk 0:00:05.9]} 43. Rxb7 {[%clk 0:00:22.7]} 43... Nd4 {[%clk
0:00:06.4]} 44. Be4 {[%clk 0:00:19.2]} 44... Ke5 {[%clk 0:00:05.5]} 45. Rg7
{[%clk 0:00:18.2]} 45... Kf6 {[%clk 0:00:04.6]} 46. Rg6+ {[%clk 0:00:18.5]}
46... Kf7 {[%clk 0:00:05]} 47. Rxg5 {[%clk 0:00:19]} 47... Nxb3 {[%clk
0:00:05.6]} 48. Rg4 {[%clk 0:00:19.2]} 48... e5 {[%clk 0:00:05.2]} 49. Rxh4
{[%clk 0:00:19]} 49... Nd2 {[%clk 0:00:04.9]} 50. Bd5+ {[%clk 0:00:19]} 50...
Kf6 {[%clk 0:00:04.1]} 51. Rh6+ {[%clk 0:00:19]} 51... Kg7 {[%clk 0:00:03.7]}
52. Ra6 {[%clk 0:00:19]} 52... Rb8 {[%clk 0:00:03.2]} 53. Ra7+ {[%clk
0:00:16.2]} 53... Kf6 {[%clk 0:00:02.8]} 54. h4 {[%clk 0:00:16.4]} 54... Rb1
{[%clk 0:00:01.6]} 55. Kh3 {[%clk 0:00:15.4]} 1-0

[Event "*** Titled Tuesday Blitz"]
[Site "Chess.com"]
[Date "2020.04.21"]
[Round "7"]
[White "Unknown_IM"]
[Black "Crazy_girl99"]
[Result "1-0"]
[WhiteElo "2583"]
[BlackElo "2411"]
[TimeControl "180+1"]
[EndTime "11:23:16 PDT"]
[Termination "Unknown_IM won by resignation"]

1. e4 {[%clk 0:03:00.9]} 1... e5 {[%clk 0:02:58.9]} 2. Nf3 {[%clk 0:03:00.2]}
2... Nc6 {[%clk 0:02:59.4]} 3. d4 {[%clk 0:02:58.7]} 3... exd4 {[%clk
0:02:58.9]} 4. Nxd4 {[%clk 0:02:59.6]} 4... Nf6 {[%clk 0:02:58.9]} 5. Nc3 {[%clk
0:02:58.7]} 5... Bb4 {[%clk 0:02:58]} 6. Nxc6 {[%clk 0:02:58.7]} 6... bxc6
{[%clk 0:02:58.1]} 7. Qd4 {[%clk 0:02:59.4]} 7... Qe7 {[%clk 0:02:53]} 8. f3
{[%clk 0:02:58.4]} 8... O-O {[%clk 0:02:46.6]} 9. Bg5 {[%clk 0:02:55.8]} 9... c5
{[%clk 0:02:36.3]} 10. Qd3 {[%clk 0:02:49.1]} 10... h6 {[%clk 0:02:28.9]} 11.
Bh4 {[%clk 0:02:42.1]} 11... d5 {[%clk 0:02:17.9]} 12. O-O-O {[%clk 0:02:40.3]}
12... Bxc3 {[%clk 0:01:52.4]} 13. Qxc3 {[%clk 0:02:37.3]} 13... dxe4 {[%clk
0:01:52.5]} 14. fxe4 {[%clk 0:02:32.7]} 14... Qxe4 {[%clk 0:01:48.7]} 15. Bxf6
{[%clk 0:02:29.8]} 15... Qf4+ {[%clk 0:01:48.8]} 16. Kb1 {[%clk 0:02:27.2]}
16... Qxf6 {[%clk 0:01:49.2]} 17. Qxc5 {[%clk 0:02:27.7]} 17... Rb8 {[%clk
0:01:38]} 18. Qd4 {[%clk 0:02:21.6]} 18... Qc6 {[%clk 0:01:30.2]} 19. Bd3 {[%clk
0:02:14.4]} 19... Be6 {[%clk 0:01:28.8]} 20. Qe4 {[%clk 0:02:06]} 20... Qxe4
{[%clk 0:01:27.3]} 21. Bxe4 {[%clk 0:02:06.9]} 21... Rb4 {[%clk 0:01:24]} 22.
Bf3 {[%clk 0:02:05.9]} 22... Rfb8 {[%clk 0:01:22.8]} 23. b3 {[%clk 0:02:05.9]}
23... a5 {[%clk 0:01:22.4]} 24. Rhe1 {[%clk 0:01:55.3]} 24... a4 {[%clk
0:01:08.6]} 25. Kb2 {[%clk 0:01:54.9]} 25... axb3 {[%clk 0:01:07.9]} 26. axb3
{[%clk 0:01:54.5]} 26... c5 {[%clk 0:01:06.5]} 27. Bd5 {[%clk 0:01:27.9]} 27...
Bg4 {[%clk 0:00:41.8]} 28. Rd3 {[%clk 0:01:24.4]} 28... c4 {[%clk 0:00:39.7]}
29. Rd4 {[%clk 0:01:15.2]} 29... cxb3 {[%clk 0:00:29.9]} 30. Rxb4 {[%clk
0:01:10.3]} 30... Rxb4 {[%clk 0:00:30.5]} 31. cxb3 {[%clk 0:01:03]} 31... Rf4
{[%clk 0:00:27.3]} 32. Kc3 {[%clk 0:01:01.9]} 32... Rf2 {[%clk 0:00:24.5]} 33.
b4 {[%clk 0:01:01.5]} 33... Bf5 {[%clk 0:00:24.8]} 34. Kd4 {[%clk 0:00:59.6]}
34... Rd2+ {[%clk 0:00:23.9]} 35. Kc5 {[%clk 0:00:58.4]} 35... Rc2+ {[%clk
0:00:23.2]} 36. Kb6 {[%clk 0:00:58.6]} 36... Rd2 {[%clk 0:00:22.2]} 37. Bc6
{[%clk 0:00:58.2]} 37... Rb2 {[%clk 0:00:17.2]} 38. b5 {[%clk 0:00:58.3]} 38...
Bd3 {[%clk 0:00:17.5]} 39. Re5 {[%clk 0:00:51.4]} 39... f6 {[%clk 0:00:16.7]}
40. Rd5 {[%clk 0:00:45.3]} 40... Bf1 {[%clk 0:00:13.7]} 41. Rd8+ {[%clk
0:00:42.1]} 41... Kf7 {[%clk 0:00:14]} 42. Kc7 {[%clk 0:00:33.5]} 42... Bxb5
{[%clk 0:00:12.8]} 43. Rb8 {[%clk 0:00:33.5]} 43... Bxc6 {[%clk 0:00:11]} 44.
Rxb2 {[%clk 0:00:33.4]} 44... Be4 {[%clk 0:00:11.6]} 45. Kd6 {[%clk 0:00:33.4]}
45... g5 {[%clk 0:00:11.4]} 46. g3 {[%clk 0:00:32.7]} 46... Kg6 {[%clk
0:00:11.6]} 47. h3 {[%clk 0:00:29.1]} 47... h5 {[%clk 0:00:11.4]} 48. Kc5 {[%clk
0:00:28.3]} 48... h4 {[%clk 0:00:11.2]} 49. gxh4 {[%clk 0:00:27.8]} 49... gxh4
{[%clk 0:00:12.1]} 50. Kd4 {[%clk 0:00:28.3]} 50... Bf5 {[%clk 0:00:11.4]} 51.
Rh2 {[%clk 0:00:28.8]} 51... Kg5 {[%clk 0:00:11.4]} 52. Ke3 {[%clk 0:00:29.3]}
52... Be6 {[%clk 0:00:11.8]} 53. Kf3 {[%clk 0:00:29.4]} 53... f5 {[%clk
0:00:12.2]} 54. Re2 {[%clk 0:00:28.5]} 54... Bd5+ {[%clk 0:00:11.1]} 55. Kf2
{[%clk 0:00:27.5]} 55... Kf4 {[%clk 0:00:10.4]} 56. Re8 {[%clk 0:00:27]} 56...
Be4 {[%clk 0:00:10.8]} 57. Rf8 {[%clk 0:00:27]} 57... Kg5 {[%clk 0:00:11]} 58.
Rg8+ {[%clk 0:00:26.8]} 58... Kf4 {[%clk 0:00:11.1]} 59. Rh8 {[%clk 0:00:26.9]}
59... Bd5 {[%clk 0:00:10.8]} 60. Rxh4+ {[%clk 0:00:26.6]} 60... Kg5 {[%clk
0:00:11.2]} 61. Rb4 {[%clk 0:00:26.1]} 61... Be4 {[%clk 0:00:11.1]} 62. Kg3
{[%clk 0:00:25.6]} 62... f4+ {[%clk 0:00:10.6]} 63. Kf2 {[%clk 0:00:25.8]} 63...
Bf5 {[%clk 0:00:11]} 64. Kf3 {[%clk 0:00:25.8]} 64... Bxh3 {[%clk 0:00:10.9]}
65. Rxf4 {[%clk 0:00:26.2]} 65... Be6 {[%clk 0:00:11]} 66. Kg3 {[%clk
0:00:26.2]} 66... Bd5 {[%clk 0:00:10]} 67. Rb4 {[%clk 0:00:26.6]} 67... Be6
{[%clk 0:00:10.2]} 68. Rb6 {[%clk 0:00:26.2]} 68... Bf5 {[%clk 0:00:10.3]} 69.
Rb5 {[%clk 0:00:26.5]} 69... Kf6 {[%clk 0:00:10.2]} 70. Kf4 {[%clk 0:00:27.4]}
70... Be6 {[%clk 0:00:10.4]} 71. Rb6 {[%clk 0:00:27.5]} 71... Ke7 {[%clk
0:00:05.9]} 72. Ke5 {[%clk 0:00:27.8]} 72... Bf7 {[%clk 0:00:06.3]} 73. Rb7+
{[%clk 0:00:27.6]} 73... Kf8 {[%clk 0:00:06]} 74. Kf6 {[%clk 0:00:27.5]} 74...
Be8 {[%clk 0:00:06.5]} 75. Rb8 {[%clk 0:00:27.2]} 1-0

[Event "*** Titled Tuesday Blitz"]
[Site "Chess.com"]
[Date "2020.04.21"]
[Round "7"]
[White "731291"]
[Black "FCChelsea14"]
[Result "1-0"]
[WhiteElo "2600"]
[BlackElo "2745"]
[TimeControl "180+1"]
[EndTime "11:23:19 PDT"]
[Termination "731291 won on time"]

1. d4 {[%clk 0:03:00.9]} 1... Nf6 {[%clk 0:02:59.8]} 2. Nf3 {[%clk 0:03:01]}
2... d5 {[%clk 0:02:59.6]} 3. c4 {[%clk 0:03:00.8]} 3... e6 {[%clk 0:02:59.5]}
4. g3 {[%clk 0:03:00.6]} 4... Bb4+ {[%clk 0:02:59.1]} 5. Bd2 {[%clk 0:03:00.5]}
5... Be7 {[%clk 0:02:59.1]} 6. Bg2 {[%clk 0:03:00.7]} 6... O-O {[%clk
0:02:59.8]} 7. O-O {[%clk 0:03:00]} 7... c6 {[%clk 0:03:00.2]} 8. Bg5 {[%clk
0:03:00.1]} 8... Nbd7 {[%clk 0:02:58.3]} 9. Nbd2 {[%clk 0:03:00]} 9... b6 {[%clk
0:02:51.6]} 10. Qc2 {[%clk 0:02:58.2]} 10... Ba6 {[%clk 0:02:51.1]} 11. Rac1
{[%clk 0:02:57.2]} 11... Rc8 {[%clk 0:02:50.9]} 12. Rfd1 {[%clk 0:02:57.3]}
12... h6 {[%clk 0:02:46.4]} 13. Bxf6 {[%clk 0:02:48.2]} 13... Nxf6 {[%clk
0:02:46.4]} 14. Ne5 {[%clk 0:02:44.5]} 14... Bb7 {[%clk 0:02:41]} 15. e4 {[%clk
0:02:41.6]} 15... Bd6 {[%clk 0:02:38.2]} 16. Nd3 {[%clk 0:02:37.8]} 16... Bb8
{[%clk 0:02:18.9]} 17. e5 {[%clk 0:02:31.6]} 17... Nd7 {[%clk 0:02:17.9]} 18. c5
{[%clk 0:02:25.1]} 18... Ba6 {[%clk 0:02:14.3]} 19. b4 {[%clk 0:02:21.8]} 19...
Bxd3 {[%clk 0:02:03.9]} 20. Qxd3 {[%clk 0:02:20.8]} 20... a5 {[%clk 0:02:04.8]}
21. a3 {[%clk 0:02:18.9]} 21... axb4 {[%clk 0:02:04.6]} 22. axb4 {[%clk
0:02:19.8]} 22... bxc5 {[%clk 0:02:01.7]} 23. bxc5 {[%clk 0:02:20.7]} 23... Bc7
{[%clk 0:02:01.9]} 24. Ra1 {[%clk 0:02:16.1]} 24... Ra8 {[%clk 0:02:02]} 25. Ra6
{[%clk 0:02:13.2]} 25... Rxa6 {[%clk 0:01:55.3]} 26. Qxa6 {[%clk 0:02:14.1]}
26... Qa8 {[%clk 0:01:53.6]} 27. Ra1 {[%clk 0:02:06.2]} 27... Qxa6 {[%clk
0:01:53.1]} 28. Rxa6 {[%clk 0:02:07.1]} 28... Nb8 {[%clk 0:01:52.4]} 29. Ra7
{[%clk 0:02:06.6]} 29... Rc8 {[%clk 0:01:52.5]} 30. Bf1 {[%clk 0:02:04.3]} 30...
Kf8 {[%clk 0:01:52.5]} 31. Nb1 {[%clk 0:01:45]} 31... Ke8 {[%clk 0:01:49.4]} 32.
Nc3 {[%clk 0:01:45.2]} 32... Bd8 {[%clk 0:01:44.7]} 33. Rb7 {[%clk 0:01:41.2]}
33... Nd7 {[%clk 0:01:42.9]} 34. Ra7 {[%clk 0:01:36.3]} 34... Rc7 {[%clk
0:01:36.5]} 35. Ra8 {[%clk 0:01:33.6]} 35... Ke7 {[%clk 0:01:31.9]} 36. Ba6
{[%clk 0:01:31.6]} 36... f6 {[%clk 0:01:30.3]} 37. f4 {[%clk 0:01:30.8]} 37...
g5 {[%clk 0:01:29.2]} 38. Kf2 {[%clk 0:01:30.5]} 38... gxf4 {[%clk 0:01:16.5]}
39. gxf4 {[%clk 0:01:31.4]} 39... fxe5 {[%clk 0:01:17.4]} 40. fxe5 {[%clk
0:01:31.7]} 40... Nf8 {[%clk 0:01:17.8]} 41. Na4 {[%clk 0:01:30.9]} 41... Ng6
{[%clk 0:01:03]} 42. Nb6 {[%clk 0:01:22.8]} 42... Nh4 {[%clk 0:00:37.1]} 43.
Nc8+ {[%clk 0:00:31.2]} 43... Kd7 {[%clk 0:00:29.8]} 44. Nd6 {[%clk 0:00:32.1]}
44... Nf5 {[%clk 0:00:19.7]} 45. Nxf5 {[%clk 0:00:21.4]} 45... exf5 {[%clk
0:00:20.6]} 46. Bd3 {[%clk 0:00:20.3]} 46... Rb7 {[%clk 0:00:16.9]} 47. Bxf5+
{[%clk 0:00:20.1]} 47... Ke7 {[%clk 0:00:17.2]} 48. Ra6 {[%clk 0:00:18]} 48...
Rb4 {[%clk 0:00:14.1]} 49. Ke3 {[%clk 0:00:15.4]} 49... Rb3+ {[%clk 0:00:10.8]}
50. Kd2 {[%clk 0:00:15.1]} 50... Ke8 {[%clk 0:00:09.3]} 51. Rxc6 {[%clk
0:00:14]} 51... Bg5+ {[%clk 0:00:10.2]} 52. Kc2 {[%clk 0:00:13.6]} 52... Rf3
{[%clk 0:00:10.1]} 53. Bg6+ {[%clk 0:00:12]} 53... Ke7 {[%clk 0:00:09.6]} 54.
Rd6 {[%clk 0:00:11.7]} 54... Rf2+ {[%clk 0:00:08.7]} 55. Kb3 {[%clk 0:00:11.2]}
55... Rf3+ {[%clk 0:00:04.3]} 56. Kb4 {[%clk 0:00:11.4]} 56... Bd2+ {[%clk
0:00:04.3]} 57. Kb5 {[%clk 0:00:11.8]} 57... Rc3 {[%clk 0:00:01.9]} 58. Rxd5
{[%clk 0:00:10.8]} 58... Be3 {[%clk 0:00:01.7]} 59. c6 {[%clk 0:00:08.9]} 59...
Rc1 {[%clk 0:00:01.3]} 60. Bf5 {[%clk 0:00:07.2]} 1-0

[Event "*** Titled Tuesday Blitz"]
[Site "Chess.com"]
[Date "2020.04.21"]
[Round "7"]
[White "Caracternin123"]
[Black "Gubajdullin"]
[Result "1/2-1/2"]
[WhiteElo "2636"]
[BlackElo "2455"]
[TimeControl "180+1"]
[EndTime "11:23:20 PDT"]
[Termination "Game drawn by stalemate"]

1. d4 {[%clk 0:03:00.9]} 1... Nf6 {[%clk 0:02:59.6]} 2. Nf3 {[%clk 0:03:01.1]}
2... g6 {[%clk 0:02:59.9]} 3. Bg5 {[%clk 0:03:00.9]} 3... Bg7 {[%clk 0:02:59.8]}
4. Nbd2 {[%clk 0:03:01.2]} 4... d5 {[%clk 0:02:58]} 5. e3 {[%clk 0:03:00.9]}
5... O-O {[%clk 0:02:57.6]} 6. Be2 {[%clk 0:03:01.1]} 6... Nbd7 {[%clk
0:02:53.2]} 7. O-O {[%clk 0:03:00.6]} 7... c6 {[%clk 0:02:53.1]} 8. c4 {[%clk
0:02:59.4]} 8... Qb6 {[%clk 0:02:37.8]} 9. Qb3 {[%clk 0:02:55.2]} 9... dxc4
{[%clk 0:02:35.5]} 10. Bxc4 {[%clk 0:02:52.1]} 10... Qxb3 {[%clk 0:02:27.4]} 11.
Bxb3 {[%clk 0:02:51.5]} 11... Nb6 {[%clk 0:02:26]} 12. e4 {[%clk 0:02:39.4]}
12... a5 {[%clk 0:02:24.6]} 13. a4 {[%clk 0:02:33.3]} 13... h6 {[%clk
0:02:22.7]} 14. Bh4 {[%clk 0:02:26]} 14... g5 {[%clk 0:02:11.9]} 15. Bg3 {[%clk
0:02:25.6]} 15... Be6 {[%clk 0:02:11.7]} 16. Bxe6 {[%clk 0:02:14.5]} 16... fxe6
{[%clk 0:02:11.1]} 17. b3 {[%clk 0:01:32.1]} 17... Nfd7 {[%clk 0:02:06.6]} 18.
Rac1 {[%clk 0:00:33.1]} 18... g4 {[%clk 0:02:04.5]} 19. Ne5 {[%clk 0:00:33.3]}
19... Nxe5 {[%clk 0:02:04.3]} 20. dxe5 {[%clk 0:00:28.9]} 20... Rfd8 {[%clk
0:02:02.5]} 21. Rfd1 {[%clk 0:00:23]} 21... Rd3 {[%clk 0:01:53.9]} 22. Nc4
{[%clk 0:00:23.1]} 22... Rxb3 {[%clk 0:01:52.4]} 23. Nxb6 {[%clk 0:00:22.9]}
23... Rxb6 {[%clk 0:01:51.8]} 24. Rd7 {[%clk 0:00:23.7]} 24... Bf8 {[%clk
0:01:49.1]} 25. Bh4 {[%clk 0:00:23]} 25... Kf7 {[%clk 0:01:47.6]} 26. f3 {[%clk
0:00:19]} 26... Ke8 {[%clk 0:01:46.8]} 27. Rd4 {[%clk 0:00:17.9]} 27... Rb4
{[%clk 0:01:43.8]} 28. Bf2 {[%clk 0:00:18.2]} 28... Rxd4 {[%clk 0:01:37.5]} 29.
Bxd4 {[%clk 0:00:19.1]} 29... gxf3 {[%clk 0:01:34.7]} 30. gxf3 {[%clk
0:00:19.1]} 30... Kd7 {[%clk 0:01:34.4]} 31. Rb1 {[%clk 0:00:19.3]} 31... Kc8
{[%clk 0:01:14.5]} 32. Bb6 {[%clk 0:00:19.5]} 32... Ra6 {[%clk 0:01:14.1]} 33.
Kf2 {[%clk 0:00:18.5]} 33... h5 {[%clk 0:01:12.3]} 34. f4 {[%clk 0:00:18.4]}
34... Bh6 {[%clk 0:01:10.8]} 35. Ke3 {[%clk 0:00:19]} 35... Kd7 {[%clk
0:01:09.7]} 36. Rd1+ {[%clk 0:00:18.1]} 36... Ke8 {[%clk 0:01:08.8]} 37. Rb1
{[%clk 0:00:18.7]} 37... Kf7 {[%clk 0:01:07.3]} 38. h4 {[%clk 0:00:19]} 38...
Ra8 {[%clk 0:01:04.1]} 39. Bc5 {[%clk 0:00:18.8]} 39... b5 {[%clk 0:00:46.6]}
40. axb5 {[%clk 0:00:19.1]} 40... cxb5 {[%clk 0:00:45.7]} 41. Rxb5 {[%clk
0:00:20]} 41... a4 {[%clk 0:00:45.1]} 42. Rb7 {[%clk 0:00:20.6]} 42... a3 {[%clk
0:00:32.1]} 43. Rxe7+ {[%clk 0:00:20.5]} 43... Kg8 {[%clk 0:00:31.5]} 44. Ra7
{[%clk 0:00:20.2]} 44... Rxa7 {[%clk 0:00:29.3]} 45. Bxa7 {[%clk 0:00:21.1]}
45... a2 {[%clk 0:00:28.9]} 46. Bd4 {[%clk 0:00:21.5]} 46... Bf8 {[%clk
0:00:27.9]} 47. Kd3 {[%clk 0:00:20.6]} 47... Be7 {[%clk 0:00:26.9]} 48. f5
{[%clk 0:00:19.3]} 48... Bxh4 {[%clk 0:00:24.4]} 49. Kc2 {[%clk 0:00:19.1]}
49... Bg3 {[%clk 0:00:20.7]} 50. Kb2 {[%clk 0:00:18.2]} 50... h4 {[%clk
0:00:20.1]} 51. Kxa2 {[%clk 0:00:18.2]} 51... h3 {[%clk 0:00:18.3]} 52. Bg1
{[%clk 0:00:18.5]} 52... Bxe5 {[%clk 0:00:16.8]} 53. Kb3 {[%clk 0:00:16.6]}
53... exf5 {[%clk 0:00:15.5]} 54. exf5 {[%clk 0:00:17.5]} 54... Kf7 {[%clk
0:00:15.7]} 55. Kc4 {[%clk 0:00:17.5]} 55... Kf6 {[%clk 0:00:15.5]} 56. Kd3
{[%clk 0:00:17.9]} 56... Kxf5 {[%clk 0:00:15.1]} 57. Ke2 {[%clk 0:00:16.6]}
57... Kg4 {[%clk 0:00:14.6]} 58. Kf2 {[%clk 0:00:15.8]} 58... Bd4+ {[%clk
0:00:12.1]} 59. Kf1 {[%clk 0:00:16.3]} 59... Be5 {[%clk 0:00:06.3]} 60. Kf2
{[%clk 0:00:15.9]} 60... Bd4+ {[%clk 0:00:05.5]} 61. Kf1 {[%clk 0:00:16.3]}
61... Kf3 {[%clk 0:00:05.4]} 62. Bh2 {[%clk 0:00:15.4]} 62... Be3 {[%clk
0:00:05.6]} 63. Bd6 {[%clk 0:00:14.9]} 63... Bf2 {[%clk 0:00:05]} 64. Bh2 {[%clk
0:00:14.6]} 64... Bg3 {[%clk 0:00:04.7]} 65. Bxg3 {[%clk 0:00:14.7]} 65... Kxg3
{[%clk 0:00:04.8]} 66. Kg1 {[%clk 0:00:15.6]} 66... h2+ {[%clk 0:00:04.2]} 67.
Kh1 {[%clk 0:00:16.5]} 67... Kh3 {[%clk 0:00:03.9]} 1/2-1/2

[Event "*** Titled Tuesday Blitz"]
[Site "Chess.com"]
[Date "2020.04.21"]
[Round "7"]
[White "djano"]
[Black "vanea_03"]
[Result "0-1"]
[WhiteElo "2474"]
[BlackElo "2660"]
[TimeControl "180+1"]
[EndTime "11:23:21 PDT"]
[Termination "vanea_03 won on time"]

1. Nf3 {[%clk 0:03:00.9]} 1... d5 {[%clk 0:02:59]} 2. g3 {[%clk 0:02:58.7]} 2...
Bg4 {[%clk 0:02:58.1]} 3. Bg2 {[%clk 0:02:58.4]} 3... Nd7 {[%clk 0:02:58.5]} 4.
c4 {[%clk 0:02:55.7]} 4... e6 {[%clk 0:02:58]} 5. Qb3 {[%clk 0:02:49.7]} 5...
Nc5 {[%clk 0:02:56.9]} 6. Qc2 {[%clk 0:02:35]} 6... Nf6 {[%clk 0:02:48.9]} 7.
O-O {[%clk 0:02:33.5]} 7... Be7 {[%clk 0:02:46.7]} 8. b3 {[%clk 0:02:19.9]} 8...
O-O {[%clk 0:02:34.7]} 9. Bb2 {[%clk 0:02:19.8]} 9... Ncd7 {[%clk 0:01:50.8]}
10. d3 {[%clk 0:02:15.6]} 10... a5 {[%clk 0:01:48.8]} 11. Nbd2 {[%clk
0:02:15.2]} 11... c6 {[%clk 0:01:47.1]} 12. a3 {[%clk 0:02:02]} 12... Bd6 {[%clk
0:01:46.6]} 13. Bc3 {[%clk 0:01:56.5]} 13... e5 {[%clk 0:01:43.9]} 14. cxd5
{[%clk 0:01:54]} 14... cxd5 {[%clk 0:01:43.4]} 15. b4 {[%clk 0:01:25.9]} 15...
a4 {[%clk 0:01:36.6]} 16. Rac1 {[%clk 0:01:17.3]} 16... Qe7 {[%clk 0:01:23.4]}
17. e4 {[%clk 0:01:13.3]} 17... d4 {[%clk 0:01:21.5]} 18. Bb2 {[%clk 0:01:13.1]}
18... b5 {[%clk 0:01:14.9]} 19. h3 {[%clk 0:01:10.4]} 19... Bxf3 {[%clk
0:01:01.7]} 20. Nxf3 {[%clk 0:01:07.1]} 20... Rab8 {[%clk 0:00:54.6]} 21. Nh4
{[%clk 0:01:04.9]} 21... g6 {[%clk 0:00:52.2]} 22. Qd2 {[%clk 0:01:02.4]} 22...
Rbc8 {[%clk 0:00:48.3]} 23. Rxc8 {[%clk 0:00:56.2]} 23... Rxc8 {[%clk
0:00:49.2]} 24. Rc1 {[%clk 0:00:56.5]} 24... Qd8 {[%clk 0:00:45.4]} 25. Kh2
{[%clk 0:00:46.4]} 25... Nh5 {[%clk 0:00:40.6]} 26. Bf3 {[%clk 0:00:42.3]} 26...
Ng7 {[%clk 0:00:39.4]} 27. Be2 {[%clk 0:00:37.9]} 27... Be7 {[%clk 0:00:35]} 28.
Ng2 {[%clk 0:00:34.3]} 28... Ne6 {[%clk 0:00:33.6]} 29. f4 {[%clk 0:00:30.7]}
29... exf4 {[%clk 0:00:23.4]} 30. gxf4 {[%clk 0:00:31.6]} 30... Bd6 {[%clk
0:00:23]} 31. e5 {[%clk 0:00:31.6]} 31... Bb8 {[%clk 0:00:21.8]} 32. Bg4 {[%clk
0:00:30]} 32... Rxc1 {[%clk 0:00:20]} 33. Qxc1 {[%clk 0:00:29]} 33... Nb6 {[%clk
0:00:20.5]} 34. Qc6 {[%clk 0:00:23]} 34... Nxf4 {[%clk 0:00:13.6]} 35. Nxf4
{[%clk 0:00:21.9]} 35... Bxe5 {[%clk 0:00:14.2]} 36. Qe4 {[%clk 0:00:17.4]}
36... Qf6 {[%clk 0:00:10.5]} 37. Bc1 {[%clk 0:00:13.6]} 37... g5 {[%clk
0:00:11]} 38. Kg2 {[%clk 0:00:13.4]} 38... Bxf4 {[%clk 0:00:08.9]} 39. Bb2
{[%clk 0:00:10.9]} 39... Be5 {[%clk 0:00:06.1]} 40. Bf3 {[%clk 0:00:10.8]} 40...
Kg7 {[%clk 0:00:06.2]} 41. Qc6 {[%clk 0:00:09.8]} 41... Qf4 {[%clk 0:00:04.3]}
42. Bc1 {[%clk 0:00:08.2]} 42... Qh2+ {[%clk 0:00:03.7]} 43. Kf1 {[%clk
0:00:08.4]} 43... Qxh3+ {[%clk 0:00:02.3]} 44. Bg2 {[%clk 0:00:08.1]} 44... Qf5+
{[%clk 0:00:02.8]} 45. Ke2 {[%clk 0:00:08.1]} 45... Qe6 {[%clk 0:00:03.2]} 46.
Qxe6 {[%clk 0:00:06.3]} 46... fxe6 {[%clk 0:00:04.1]} 47. Bxg5 {[%clk
0:00:06.3]} 47... Nd5 {[%clk 0:00:03.8]} 48. Bd2 {[%clk 0:00:03.6]} 48... Kg6
{[%clk 0:00:03]} 49. Kf3 {[%clk 0:00:03.8]} 49... h5 {[%clk 0:00:02.2]} 50. Ke4
{[%clk 0:00:03.7]} 50... Kf6 {[%clk 0:00:02.6]} 51. Kf3 {[%clk 0:00:01.5]} 51...
Bd6 {[%clk 0:00:02.2]} 52. Bh3 {[%clk 0:00:01.2]} 52... Be5 {[%clk 0:00:02.1]}
53. Ke2 {[%clk 0:00:01.5]} 53... Bf4 {[%clk 0:00:02]} 54. Be1 {[%clk 0:00:01.2]}
54... Be3 {[%clk 0:00:02.3]} 55. Kf3 {[%clk 0:00:01.6]} 55... Nf4 {[%clk
0:00:02.4]} 0-1